[Event "3rd Matrix Cup 2024"]
[Site "New Delhi"]
[Date "2024.04.07"]
[Round "2.8"]
[White "Abeer, Ali"]
[Black "Kishan Kumar"]
[Result "1/2-1/2"]
[ECO "D02"]
[WhiteElo "1701"]
[BlackElo "1933"]
[Annotator "RC"]
[PlyCount "60"]
[EventDate "2024.04.07"]
[EventType "swiss"]
[EventCountry "IND"]
[SourceTitle "playchess.com"]
[Source "ChessBase"]
[SourceQuality "1"]
[TimeControl "5400+30"]

1. d4 {[%emt 0:00:03]} Nf6 {[%emt 0:00:02]} 2. Nf3 {[%emt 0:00:13]} e6 {[%emt 0:00:27]} 3. Bf4 {[%emt 0:00:30]} c5 {[%emt 0:00:33]} 4. e3 {[%emt 0:00:09]} Nc6 {[%emt 0:00:19]} 5. c3 {[%emt 0:00:36]} d5 {[%emt 0:01:00]} 6. Nbd2 {[%emt 0:00:21]} Bd6 {[%emt 0:00:49]} 7. Bg3 {[%emt 0:01:15]} O-O {[%emt 0:00:44]} 8. Bd3 {[%emt 0:00:57]} b6 {[%emt 0:01:03]} 9. O-O {[%emt 0:04:51]} Bb7 {[%emt 0:00:32]} 10. Qe2 {[%emt 0:07:56]} Rc8 {[%emt 0:05:29]} 11. Rac1 {[%emt 0:03:34]} Bxg3 {[%emt 0:02:55]} 12. hxg3 {[%emt 0:00:11]} Qd6 {[%emt 0:01:07]} 13. dxc5 {[%emt 0:11:16]} Qxc5 {[%emt 0:01:18]} 14. e4 {[%emt 0:06:13]} dxe4 {[%emt 0:00:59]} 15. Nxe4 {[%emt 0:00:52]} Nxe4 {[%emt 0:00:24]} 16. Bxe4 {[%emt 0:02:50]} g6 {[%emt 0:01:52]} 17. Rfd1 {[%emt 0:06:05]} Qe7 {[%emt 0:07:19]} 18. Nd4 {[%emt 0:05:20]} Na5 {[%emt 0:06:03]} 19. Qf3 {[%emt 0:04:57]} Ba6 {[%emt 0:05:27]} 20. Nc6 {[%emt 0:06:44]} Nxc6 {[%emt 0:03:52]} 21. Bxc6 {[%emt 0:00:17]} Qc7 {[%emt 0:01:29]} 22. Be4 {[%emt 0:01:58]} f5 {[%emt 0:01:00]} 23. Bc2 {[%emt 0:01:04]} Bb7 {[%emt 0:01:31]} 24. Qe3 {[%emt 0:00:30]} e5 {[%emt 0:00:30]} 25. f4 {[%emt 0:00:30]} Rfe8 {[%emt 0:00:30]} 26. Rd2 {[%emt 0:00:30]} Qc5 {[%emt 0:00:30]} 27. Bb3+ {[%emt 0:00:30]} Kf8 {[%emt 0:00:30]} 28. Qxc5+ {[%emt 0:00:30]} Rxc5 {[%emt 0:00:30]} 29. Rd7 {[%emt 0:00:30]} Re7 {[%emt 0:00:30]} 30. Rcd1 {[%emt 0:00:30]} Kg7 {[%emt 0:00:30]} 1/2-1/2

[Event "3rd Matrix Cup 2024"]
[Site "New Delhi"]
[Date "2024.04.07"]
[Round "3.1"]
[White "Aronyak Ghosh"]
[Black "Mahir Taneja"]
[Result "1-0"]
[ECO "E01"]
[WhiteElo "2517"]
[BlackElo "1718"]
[Annotator "TA"]
[PlyCount "83"]
[EventDate "2024.04.07"]
[EventType "swiss"]
[EventCountry "IND"]
[SourceTitle "playchess.com"]
[Source "ChessBase"]
[SourceQuality "1"]
[TimeControl "5400+30"]

{[%evp 15,83,12,36,44,54,52,70,74,75,75,72,45,101,95,100,113,110,118,131,130,155,156,169,172,178,146,145,142,147,150,154,147,197,204,193,197,196,197,254,259,256,252,275,249,295,287,343,347,346,349,346,335,541,540,546,538,572,555,1338,1284,1965,1861,5618,5189,6085,5646,29991,29992,29992,29993]} 1. Nf3 {[%emt 0:01:04]} d5 {[%emt 0:03:13]} 2. g3 {[%emt 0:01:00]} Nf6 {[%emt 0:00:25]} 3. Bg2 {[%emt 0:00:09]} e6 {[%emt 0:00:21]} 4. O-O {[%emt 0:00:58]} Bd6 {[%emt 0:00:30]} 5. c4 {[%emt 0:03:33]} O-O {[%emt 0:00:58]} 6. d4 {[%emt 0:02:36]} c6 {[%emt 0:01:42]} 7. Nc3 {[%emt 0:01:27]} Nbd7 {[%emt 0:02:14]} 8. Nd2 {[%emt 0:00:53]} Re8 {[%emt 0:08:47]} 9. e4 {[%emt 0:02:13]} dxe4 {[%emt 0:00:12]} 10. Ndxe4 {[%emt 0:00:11]} Nxe4 {[%emt 0:00:07]} 11. Nxe4 {[%emt 0:00:08] White is slightly better.} Be7 {[%emt 0:14:48]} 12. Bf4 {[%emt 0:02:06]} Nf6 {[%emt 0:00:11]} 13. Nc3 {[%emt 0:02:55]} Bd6 {[%emt 0:17:37] [#]} (13... Qd7 $14) 14. Be5 $1 $16 {[%emt 0:03:01]} Bxe5 {[%emt 0:05:50]} 15. dxe5 {[%emt 0:00:08] Qxd8 is the strong threat.} Qxd1 {[%emt 0:01:23]} 16. Raxd1 {[%emt 0:00:08]} Nd7 {[%emt 0:00:23]} 17. f4 {[%emt 0:01:38]} Nb6 {[%emt 0:01:10]} 18. b3 {[%emt 0:00:40]} Kf8 {[%emt 0:08:08]} 19. Ne4 {[%emt 0:02:43]} Ke7 {[%emt 0:01:33] Black is weak on the dark squares} 20. Rd4 {[%emt 0:01:55]} Rd8 {[%emt 0:01:33]} 21. Nd6 {[%emt 0:02:43]} Rb8 {[%emt 0:00:39]} 22. Rfd1 {[%emt 0:06:17][%cal Od6f5] Nf5+! would now be deadly. White has more active pieces.} Bd7 {[%emt 0:01:26]} 23. Ne4 {[%emt 0:01:23]} Be8 {[%emt 0:00:55] [#]} (23... Rdc8 $16 24. g4 Rc7) 24. Rxd8 $1 $18 {[%emt 0:00:57]} Rxd8 {[%emt 0:00:01]} 25. Rxd8 {[%emt 0:00:06]} Kxd8 {[%emt 0:00:04][%mdl 4096] Endgame. KBN-KBN} 26. Nd6 {[%emt 0:00:04][%cal Be4d6,Bd6b7,Bb7c5][%mdl 32]} Nc8 {[%emt 0:00:15]} (26... f6 {was called for.} 27. Nxb7+ Kd7) 27. Nxb7+ {[%emt 0:00:48]} Kc7 {[%emt 0:00:01]} 28. Nc5 {[%emt 0:00:09]} Kb6 {[%emt 0:00:13]} 29. b4 {[%emt 0:00:52]} Ne7 {[%emt 0:01:39]} 30. Be4 {[%emt 0:01:34]} a5 {[%emt 0:01:26]} 31. a3 {[%emt 0:00:10][%cal Ba2a3,Ba3b4][%mdl 32]} ({But not} 31. Bxh7 axb4 32. Ne4 (32. Na4+ Ka5 $18) 32... Ka5 $18) 31... axb4 {[%emt 0:00:08]} 32. axb4 {[%emt 0:00:02]} h6 {[%emt 0:01:19]} 33. Kf2 {[%emt 0:00:10]} f5 $2 {[%emt 0:00:16]} (33... Ka7 34. Ke3 Ng8) 34. exf6 {[%emt 0:03:58]} gxf6 {[%emt 0:00:02][%cal Bg7f6,Bf6f5][%mdl 32]} 35. Nxe6 {[%emt 0:00:05]} Bf7 {[%emt 0:00:05]} 36. f5 {[%emt 0:00:27]} Bxe6 {[%emt 0:00:09]} 37. fxe6 {[%emt 0:00:02] KB-KN} f5 {[%emt 0:00:17]} 38. Bf3 {[%emt 0:01:14]} Kc7 {[%emt 0:00:39]} 39. c5 {[%emt 0:00:43]} Ng6 {[%emt 0:00:14]} 40. Ke3 {[%emt 0:00:07]} Nf8 {[%emt 0:00:20]} 41. e7 {[%emt 0:00:14]} Nd7 {[%emt 0:00:07]} 42. e8=Q {[%emt 0:00:05] Weighted Error Value: White=0.03 (flawless) /Black=0.48.  Mistake:       	---       	Black=4      Inaccurate:     	White=1     	Black=2      OK:         	White=14    	Black=7      Best:        	White=2     	---        Strong:       	White=2     	---} 1-0

[Event "3rd Matrix Cup 2024"]
[Site "New Delhi"]
[Date "2024.04.07"]
[Round "3.2"]
[White "Krishika Garg"]
[Black "Neelash Saha"]
[Result "0-1"]
[ECO "B15"]
[WhiteElo "1713"]
[BlackElo "2464"]
[Annotator "TA"]
[PlyCount "108"]
[EventDate "2024.04.07"]
[EventType "swiss"]
[EventCountry "IND"]
[SourceTitle "playchess.com"]
[Source "ChessBase"]
[SourceQuality "1"]
[TimeControl "5400+30"]

{[%evp 15,108,19,31,6,0,0,1,3,7,0,0,-18,-11,-22,-22,-18,-5,-11,0,-115,-116,-118,-102,-109,-106,-113,-89,-202,-195,-197,-190,-191,-189,-239,-119,-129,-134,-132,-114,-108,-108,-114,-114,-114,-110,-112,-91,-153,-158,-219,-218,-212,-212,-196,-200,-201,-200,-247,-231,-324,-327,-318,-316,-316,-323,-327,-315,-366,-356,-357,-349,-347,-338,-395,-385,-624,-593,-1040,-1006,-1604,-1573,-1328,-1222,-1238,-1088,-844,-1074,-1059,-1060,-1874,-2013,-1977,-1792,-1945,-1852]} 1. e4 {[%emt 0:24:08]} c6 {[%emt 0:00:40]} 2. d4 {[%emt 0:01:04]} d5 {[%emt 0:00:07]} 3. Nc3 {[%emt 0:00:06]} dxe4 {[%emt 0:00:06]} 4. Nxe4 {[%emt 0:00:04]} Nf6 {[%emt 0:00:04]} 5. Nxf6+ {[%emt 0:01:37]} exf6 {[%emt 0:00:07]} 6. Nf3 {[%emt 0:04:04]} Bg4 {[%emt 0:01:05]} 7. Be2 {[%emt 0:00:55]} Bd6 {[%emt 0:00:16]} 8. O-O {[%emt 0:01:27]} O-O {[%emt 0:00:09]} 9. Be3 {[%emt 0:02:39]} Re8 {[%emt 0:00:42]} 10. h3 {[%emt 0:07:19]} Bh5 {[%emt 0:00:10]} 11. Re1 {[%emt 0:01:55] The position is equal.} Nd7 {[%emt 0:01:10][%cal Bb8d7,Bd7f6,Bf6e4][%mdl 32]} 12. c4 {[%emt 0:02:32]} f5 {[%emt 0:06:10]} 13. Qd2 {[%emt 0:06:14]} Nf6 {[%emt 0:00:16]} 14. Rad1 {[%emt 0:06:34]} Ne4 {[%emt 0:01:05]} 15. Qc1 {[%emt 0:01:12]} Bc7 {[%emt 0:00:50]} 16. d5 {[%emt 0:05:16]} c5 {[%emt 0:00:53]} 17. Nd2 {[%emt 0:09:24]} (17. Bf4 $11 {remains equal.}) 17... Bxe2 $17 {[%emt 0:03:24]} 18. Rxe2 {[%emt 0:03:55]} f4 $1 {[%emt 0:02:24] Black has more active pieces.} 19. Nxe4 {[%emt 0:01:54]} Rxe4 {[%emt 0:00:07]} 20. d6 {[%emt 0:04:08]} Bxd6 {[%emt 0:07:49]} 21. Red2 {[%emt 0:02:30]} (21. Qc2 $17 Qe7 22. Rxd6) 21... fxe3 $19 {[%emt 0:00:47]} (21... Re6 $2 22. Bxf4 Qa5 23. Bxd6 $18 (23. Rxd6 Rxd6 24. Bxd6 b6 $18)) 22. Rxd6 {[%emt 0:00:01]} exf2+ {[%emt 0:00:15]} 23. Kxf2 {[%emt 0:00:22]} Qh4+ {[%emt 0:00:04]} 24. Kg1 {[%emt 0:00:53] [#]} (24. Kf1 {might work better.}) 24... Rae8 {[%emt 0:00:06]} (24... Rxc4 $2 25. Qxc4 Qe7 26. Rd7 $18 (26. Qxc5 h6 $18)) (24... Re2 $1 $19 {and Black stays clearly on top. ( -> ...Qf2+)} 25. Kh1 Rae8) 25. Qd2 $17 {[%emt 0:04:00] Wards off Qf2+} g6 {[%emt 0:07:17][%cal Oe4e2] aiming for ...Re2!} ({Of course not} 25... Rxc4 $6 26. Rd8 Rce4 27. Qd7 Re1+ 28. Rxe1 Qxe1+ (28... Rxd8 29. Re8+ Rxe8 30. Qxe8#) 29. Kh2 $11) 26. Rd8 {[%emt 0:02:02]} Qf6 {[%emt 0:01:19]} 27. Qd7 {[%emt 0:03:57]} Rxd8 $40 {[%emt 0:02:17][%mdl 128] Black goes for the king.} 28. Qxd8+ {[%emt 0:00:02]} Kg7 {[%emt 0:00:21][%cal Oe4e1]} 29. Qxf6+ {[%emt 0:00:49]} Kxf6 {[%emt 0:00:05][%mdl 4096] Endgame. KR-KR} 30. Rd7 {[%emt 0:00:06]} Re7 31. Rd2 {[%emt 0:01:36]} (31. Rd6+ $142 Re6 32. Rd7) 31... b6 {[%emt 0:01:14]} 32. Kf2 {[%emt 0:00:04]} (32. b3 $17 {keeps fighting.}) 32... Re4 $19 {[%emt 0:00:40]} 33. b3 {[%emt 0:01:23] [#]} Rd4 $1 {[%emt 0:01:26]} 34. Re2 {[%emt 0:00:47]} Rd3 {[%emt 0:00:22]} 35. Ke1 {[%emt 0:00:56]} h5 {[%emt 0:00:16]} 36. Re8 {[%emt 0:00:24]} Rc3 {[%emt 0:01:30]} 37. Ra8 {[%emt 0:01:15]} (37. Re2 $142) 37... Rc1+ {[%emt 0:01:25]} 38. Kd2 {[%emt 0:00:51]} Rg1 {[%emt 0:00:05]} 39. Rxa7 {[%emt 0:00:15]} Rxg2+ {[%emt 0:00:05]} 40. Ke1 {[%emt 0:00:25]} Rg3 {[%emt 0:01:18]} ({Resist} 40... Rh2 41. Ra6) 41. h4 {[%emt 0:01:10]} Rh3 {[%emt 0:09:01]} 42. Ra6 {[%emt 0:00:35]} Ke5 {[%emt 0:01:19]} 43. Rxb6 {[%emt 0:00:18]} Rxh4 {[%emt 0:00:05]} 44. Rc6 {[%emt 0:00:23]} Kd4 {[%emt 0:00:06]} 45. Rf6 $2 {[%emt 0:00:26]} (45. Kf1 Rf4+ 46. Kg2) 45... Ke3 {[%emt 0:01:00] And now ...Rh1+ would win. Black is clearly winning.} 46. Kd1 {[%emt 0:00:36]} Rf4 {[%emt 0:01:55]} 47. Rc6 {[%emt 0:00:42]} h4 {[%emt 0:01:11]} 48. Rc8 {[%emt 0:00:03]} Rf1+ {[%emt 0:00:48]} 49. Kc2 {[%emt 0:00:04]} Rf5 {[%emt 0:00:05]} 50. Rd8 {[%emt 0:00:44]} Rf2+ {[%emt 0:00:36]} 51. Kc3 {[%emt 0:00:46]} Rxa2 {[%emt 0:00:05]} 52. Rd3+ {[%emt 0:00:32]} Kf4 {[%emt 0:00:11] White must now prevent ...Kg4.} 53. Rd7 {[%emt 0:00:41]} f5 {[%emt 0:00:11] ...h3 would now be deadly.} 54. b4 {[%emt 0:00:29]} Ra3+ {[%emt 0:00:11] Weighted Error Value: White=0.51/Black=0.07 (flawless) .  Mistake:       	White=7     	Black=1      Inaccurate:     	White=2     	---        OK:         	White=15    	Black=19     Best:        	White=2     	Black=5      Strong:       	---       	Black=1} 0-1

[Event "3rd Matrix Cup 2024"]
[Site "New Delhi"]
[Date "2024.04.07"]
[Round "3.3"]
[White "Singh, Arvinder Preet"]
[Black "Surada Yashaswi Satya Gangadha"]
[Result "1-0"]
[ECO "C97"]
[WhiteElo "2064"]
[BlackElo "1711"]
[Annotator "RC"]
[PlyCount "67"]
[EventDate "2024.04.07"]
[EventType "swiss"]
[EventCountry "IND"]
[SourceTitle "playchess.com"]
[Source "ChessBase"]
[SourceQuality "1"]
[TimeControl "5400+30"]

1. e4 {[%emt 0:00:03]} e5 {[%emt 0:03:10]} 2. Nf3 {[%emt 0:00:01]} Nc6 {[%emt 0:00:59]} 3. Bb5 {[%emt 0:00:15]} a6 {[%emt 0:00:16]} 4. Ba4 {[%emt 0:00:02]} Nf6 {[%emt 0:00:05]} 5. O-O {[%emt 0:00:07]} Be7 {[%emt 0:00:06]} 6. Re1 {[%emt 0:00:04]} b5 {[%emt 0:00:08]} 7. Bb3 {[%emt 0:00:05]} d6 {[%emt 0:00:03]} 8. c3 {[%emt 0:00:18]} O-O {[%emt 0:00:05]} 9. h3 {[%emt 0:00:09]} Na5 {[%emt 0:00:04]} 10. Bc2 {[%emt 0:00:08]} c5 {[%emt 0:00:11]} 11. d4 {[%emt 0:00:10]} Qc7 {[%emt 0:00:07]} 12. Nbd2 {[%emt 0:00:11]} Bd7 {[%emt 0:00:38]} 13. Nf1 {[%emt 0:04:03]} Nc4 {[%emt 0:02:53]} 14. b3 {[%emt 0:06:42]} Nb6 {[%emt 0:01:49]} 15. Be3 {[%emt 0:02:37]} exd4 {[%emt 0:11:50]} 16. cxd4 {[%emt 0:00:19]} Rfe8 {[%emt 0:14:54]} 17. Rc1 {[%emt 0:02:49]} Rac8 {[%emt 0:06:07]} 18. Ng3 {[%emt 0:08:41]} Qb7 {[%emt 0:17:35]} 19. Bg5 {[%emt 0:21:08]} h6 {[%emt 0:07:18]} 20. Bxf6 {[%emt 0:00:27]} Bxf6 {[%emt 0:00:16]} 21. e5 {[%emt 0:00:17]} dxe5 {[%emt 0:04:00]} 22. dxe5 {[%emt 0:04:49]} Bd8 {[%emt 0:04:45]} 23. Ne4 {[%emt 0:00:26]} Be7 {[%emt 0:03:54]} 24. Qd3 {[%emt 0:08:02]} g6 {[%emt 0:00:41]} 25. Qd2 {[%emt 0:01:50]} Kh7 {[%emt 0:01:39]} 26. Rcd1 {[%emt 0:04:53]} Be6 {[%emt 0:04:01]} 27. Nd6 {[%emt 0:03:53]} Bxd6 {[%emt 0:00:06]} 28. exd6 {[%emt 0:00:12]} Rcd8 {[%emt 0:00:51]} 29. Re5 {[%emt 0:04:41]} Kg7 {[%emt 0:04:56]} 30. Rxc5 {[%emt 0:01:02]} Nc8 {[%emt 0:04:54]} 31. Qc3+ {[%emt 0:01:32]} Kh7 {[%emt 0:01:04]} 32. Rc7 {[%emt 0:07:09]} Qb6 {[%emt 0:02:08]} 33. Qf6 {[%emt 0:02:32]} Nxd6 {[%emt 0:01:24]} 34. Qxg6+ {[%emt 0:00:11]} 1-0

[Event "3rd Matrix Cup 2024"]
[Site "New Delhi"]
[Date "2024.04.07"]
[Round "3.4"]
[White "Shreyas Raj"]
[Black "Ram Prakash, R."]
[Result "0-1"]
[ECO "B13"]
[WhiteElo "1713"]
[BlackElo "2191"]
[Annotator "RC"]
[PlyCount "150"]
[EventDate "2024.04.07"]
[EventType "swiss"]
[EventCountry "IND"]
[SourceTitle "playchess.com"]
[Source "ChessBase"]
[SourceQuality "1"]
[TimeControl "5400+30"]

1. e4 {[%emt 0:00:05]} c6 {[%emt 0:00:19]} 2. d4 {[%emt 0:00:13]} d5 {[%emt 0:01:05]} 3. exd5 {[%emt 0:00:30]} cxd5 {[%emt 0:00:04]} 4. Bd3 {[%emt 0:00:18]} Nc6 {[%emt 0:00:07]} 5. c3 {[%emt 0:00:37]} Qc7 {[%emt 0:00:10]} 6. h3 {[%emt 0:00:57]} g6 {[%emt 0:00:18]} 7. Ne2 {[%emt 0:01:32]} Bf5 {[%emt 0:01:18]} 8. Bxf5 {[%emt 0:02:11]} gxf5 {[%emt 0:00:03]} 9. Bf4 {[%emt 0:00:40]} Qd7 {[%emt 0:00:28]} 10. Nd2 {[%emt 0:01:18]} Nf6 {[%emt 0:12:28]} 11. O-O {[%emt 0:05:16]} Rg8 {[%emt 0:07:22]} 12. Nf3 {[%emt 0:07:06]} Ne4 {[%emt 0:01:37]} 13. Ne5 {[%emt 0:06:21]} Nxe5 {[%emt 0:00:15]} 14. dxe5 {[%emt 0:00:14]} e6 {[%emt 0:00:33]} 15. f3 {[%emt 0:02:57]} Nc5 {[%emt 0:02:49]} 16. a4 {[%emt 0:06:09]} Qc7 {[%emt 0:06:39]} 17. Nd4 {[%emt 0:03:33]} Nd7 {[%emt 0:00:24]} 18. Qe2 {[%emt 0:06:38]} a6 {[%emt 0:03:48]} 19. Kh1 {[%emt 0:08:56]} Be7 {[%emt 0:04:25]} 20. Rfc1 {[%emt 0:06:59]} Qc4 {[%emt 0:06:51]} 21. Qc2 {[%emt 0:10:11]} Bg5 {[%emt 0:02:14]} 22. b3 {[%emt 0:02:03]} Qc7 {[%emt 0:00:34]} 23. Bxg5 {[%emt 0:01:38]} Rxg5 {[%emt 0:00:04]} 24. f4 {[%emt 0:05:51]} Rg3 {[%emt 0:13:39]} 25. c4 {[%emt 0:02:44]} dxc4 {[%emt 0:00:46]} 26. Qf2 {[%emt 0:01:03]} Rd3 {[%emt 0:01:19]} 27. Rxc4 {[%emt 0:00:21]} Qb6 {[%emt 0:00:46]} 28. a5 {[%emt 0:04:16]} Qa7 {[%emt 0:00:23]} 29. Rf1 {[%emt 0:01:46]} b5 {[%emt 0:02:15]} 30. axb6 {[%emt 0:00:47]} Qxb6 {[%emt 0:00:19]} 31. Qb2 {[%emt 0:02:29]} Rd8 {[%emt 0:03:49]} 32. Nc6 {[%emt 0:03:31]} Rc8 {[%emt 0:00:20]} 33. Rfc1 {[%emt 0:00:02]} Rxb3 {[%emt 0:04:17]} 34. Qd2 {[%emt 0:00:53]} Qb7 {[%emt 0:06:03]} 35. Na5 {[%emt 0:01:48]} Rxh3+ {[%emt 0:00:38]} 36. Kg1 {[%emt 0:00:18]} Qb6+ {[%emt 0:00:09]} 37. Kf1 {[%emt 0:02:11]} Rh1+ {[%emt 0:00:18]} 38. Ke2 {[%emt 0:00:05]} Rxc1 {[%emt 0:00:37]} 39. Qxc1 {[%emt 0:00:16]} Qb5 {[%emt 0:03:46]} 40. Kf3 {[%emt 0:01:23]} Rxc4 {[%emt 0:01:56]} 41. Nxc4 {[%emt 0:00:07]} Ke7 {[%emt 0:03:35]} 42. Nd6 {[%emt 0:01:09]} Qc5 {[%emt 0:01:40]} 43. Qh1 {[%emt 0:01:41]} Qd5+ {[%emt 0:03:36]} 44. Kf2 {[%emt 0:00:35]} Qd2+ {[%emt 0:02:56]} 45. Kf3 {[%emt 0:00:30]} Qd3+ {[%emt 0:00:56]} 46. Kf2 {[%emt 0:00:09]} Nc5 {[%emt 0:00:32]} 47. Qh4+ {[%emt 0:01:06]} Kd7 {[%emt 0:00:36]} 48. Qxh7 {[%emt 0:00:46]} Kc6 {[%emt 0:01:35]} 49. Qxf7 {[%emt 0:01:21]} Qb3 {[%emt 0:01:19]} 50. Qe8+ {[%emt 0:00:50]} Kd5 {[%emt 0:00:13]} 51. Qa8+ {[%emt 0:00:26]} Kd4 {[%emt 0:00:06]} 52. Qf3 {[%emt 0:00:50]} Qd3 {[%emt 0:02:25]} 53. g4 {[%emt 0:00:45]} Qd2+ {[%emt 0:01:32]} 54. Kg3 {[%emt 0:00:18]} Qe1+ {[%emt 0:00:16]} 55. Kg2 {[%emt 0:00:26]} fxg4 {[%emt 0:00:45]} 56. Qxg4 {[%emt 0:00:13]} Qd2+ {[%emt 0:00:36]} 57. Kh3 {[%emt 0:00:25]} Qd3+ {[%emt 0:00:06]} 58. Kh4 {[%emt 0:00:19]} Qh7+ {[%emt 0:00:37]} 59. Kg3 {[%emt 0:00:10]} Qd3+ {[%emt 0:00:49]} 60. Kh4 {[%emt 0:00:08]} Kc3 {[%emt 0:00:25]} 61. f5 {[%emt 0:01:26]} exf5 {[%emt 0:00:13]} 62. Qxf5 {[%emt 0:00:46]} Qxf5 {[%emt 0:00:38]} 63. Nxf5 {[%emt 0:00:08]} a5 {[%emt 0:00:05]} 64. Ne3 {[%emt 0:01:10]} a4 {[%emt 0:00:23]} 65. Nd5+ {[%emt 0:00:24]} Kd4 {[%emt 0:00:12]} 66. Nb4 {[%emt 0:00:18]} Kxe5 {[%emt 0:00:26]} 67. Kg3 {[%emt 0:00:13]} Ke4 {[%emt 0:00:10]} 68. Na2 {[%emt 0:00:27]} Ke3 {[%emt 0:00:15]} 69. Nb4 {[%emt 0:00:28]} Ne4+ {[%emt 0:00:28]} 70. Kg2 {[%emt 0:00:13]} Ke2 {[%emt 0:00:14]} 71. Nc2 {[%emt 0:00:48]} Kd2 {[%emt 0:00:34]} 72. Na3 {[%emt 0:00:16]} Nd6 {[%emt 0:00:11]} 73. Kf3 {[%emt 0:01:00]} Kc3 {[%emt 0:00:12]} 74. Nb1+ {[%emt 0:00:22]} Kc2 {[%emt 0:00:14]} 75. Na3+ {[%emt 0:00:05]} Kb2 {[%emt 0:00:06]} 0-1

[Event "3rd Matrix Cup 2024"]
[Site "New Delhi"]
[Date "2024.04.07"]
[Round "3.5"]
[White "Ishvi Aggarwal"]
[Black "Siddhant Nath Jha"]
[Result "0-1"]
[ECO "A94"]
[WhiteElo "1959"]
[BlackElo "1704"]
[Annotator "RC"]
[PlyCount "98"]
[EventDate "2024.04.07"]
[EventType "swiss"]
[EventCountry "IND"]
[SourceTitle "playchess.com"]
[Source "ChessBase"]
[SourceQuality "1"]
[TimeControl "5400+30"]

1. d4 {[%emt 0:00:02]} d5 {[%emt 0:00:12]} 2. c4 {[%emt 0:00:05]} e6 {[%emt 0:00:11]} 3. Nf3 {[%emt 0:00:08]} c6 {[%emt 0:00:08]} 4. g3 {[%emt 0:00:09]} f5 {[%emt 0:00:09]} 5. Bg2 {[%emt 0:00:03]} Nf6 {[%emt 0:00:04]} 6. O-O {[%emt 0:00:14]} Be7 {[%emt 0:00:02]} 7. b3 {[%emt 0:00:05]} O-O {[%emt 0:00:09]} 8. Ba3 {[%emt 0:00:04]} Nbd7 {[%emt 0:01:08]} 9. Qd3 {[%emt 0:04:36]} Ne4 {[%emt 0:01:58]} 10. e3 {[%emt 0:03:29]} g5 {[%emt 0:04:42]} 11. Bxe7 {[%emt 0:00:27]} Qxe7 {[%emt 0:00:05]} 12. Nbd2 {[%emt 0:00:43]} Rf6 {[%emt 0:03:58]} 13. Ne5 {[%emt 0:03:32]} g4 {[%emt 0:19:53]} 14. Nxg4 {[%emt 0:13:01]} fxg4 {[%emt 0:00:57]} 15. Nxe4 {[%emt 0:00:10]} dxe4 {[%emt 0:00:30]} 16. Qxe4 {[%emt 0:00:05]} Rg6 {[%emt 0:09:05]} 17. f4 {[%emt 0:09:54]} Qf7 {[%emt 0:08:41]} 18. Qc2 {[%emt 0:01:59]} Nf6 {[%emt 0:00:56]} 19. e4 {[%emt 0:03:30]} Bd7 {[%emt 0:01:27]} 20. e5 {[%emt 0:05:21]} Ne8 {[%emt 0:01:07]} 21. Be4 {[%emt 0:00:39]} Rh6 {[%emt 0:01:22]} 22. Qe2 {[%emt 0:02:54]} Qh5 {[%emt 0:02:11]} 23. d5 {[%emt 0:06:12]} cxd5 {[%emt 0:00:02]} 24. cxd5 {[%emt 0:00:11]} Bb5 {[%emt 0:00:01]} 25. Qd2 {[%emt 0:01:49]} Bxf1 {[%emt 0:00:29]} 26. Rxf1 {[%emt 0:00:02]} Ng7 {[%emt 0:04:01]} 27. Rc1 {[%emt 0:03:38]} exd5 {[%emt 0:05:55]} 28. Bxd5+ {[%emt 0:02:26]} Kh8 {[%emt 0:00:11]} 29. Bxb7 {[%emt 0:00:50]} Rf8 {[%emt 0:00:38]} 30. Qb2 {[%emt 0:00:46]} Qf7 {[%emt 0:05:48]} 31. Be4 {[%emt 0:00:57]} Rd8 {[%emt 0:07:01]} 32. Qc3 {[%emt 0:05:42]} Qd7 {[%emt 0:03:37]} 33. a4 {[%emt 0:08:55]} Ne6 {[%emt 0:03:17]} 34. Bf5 {[%emt 0:02:21]} Qd4+ {[%emt 0:02:12]} 35. Qxd4 {[%emt 0:00:57]} Nxd4 {[%emt 0:00:04]} 36. Bxg4 {[%emt 0:00:20]} Nxb3 {[%emt 0:00:47]} 37. Rc7 {[%emt 0:00:39]} Rg6 {[%emt 0:03:22]} 38. Bd7 {[%emt 0:03:18]} Rg7 {[%emt 0:00:43]} 39. e6 {[%emt 0:00:02]} Nd4 {[%emt 0:02:43]} 40. Rc4 {[%emt 0:00:28]} Nf5 {[%emt 0:00:53]} 41. Rc5 {[%emt 0:01:52]} Nd6 {[%emt 0:00:21]} 42. Re5 {[%emt 0:03:32]} Ne8 {[%emt 0:01:41]} 43. f5 {[%emt 0:01:49]} Nf6 {[%emt 0:00:06]} 44. Bb5 {[%emt 0:00:26]} Re7 {[%emt 0:00:18]} 45. h3 {[%emt 0:01:03]} Rd5 {[%emt 0:00:13]} 46. Rxd5 {[%emt 0:00:37]} Nxd5 {[%emt 0:00:09]} 47. g4 {[%emt 0:00:19]} h6 {[%emt 0:01:10]} 48. Kf2 {[%emt 0:01:41]} Kg7 {[%emt 0:00:07]} 49. Kf3 {[%emt 0:00:37]} Kf6 {[%emt 0:00:07]} 0-1

[Event "3rd Matrix Cup 2024"]
[Site "New Delhi"]
[Date "2024.04.07"]
[Round "3.6"]
[White "Daksh Goyal"]
[Black "Badhwar, Daksh"]
[Result "1-0"]
[ECO "B76"]
[WhiteElo "1916"]
[BlackElo "1696"]
[Annotator "RC"]
[PlyCount "57"]
[EventDate "2024.04.07"]
[EventType "swiss"]
[EventCountry "IND"]
[SourceTitle "playchess.com"]
[Source "ChessBase"]
[SourceQuality "1"]
[TimeControl "5400+30"]

1. e4 {[%emt 0:01:00]} c5 {[%emt 0:00:25]} 2. Nf3 {[%emt 0:00:04]} d6 {[%emt 0:00:36]} 3. d4 {[%emt 0:00:05]} cxd4 {[%emt 0:00:18]} 4. Nxd4 {[%emt 0:00:03]} Nf6 {[%emt 0:00:14]} 5. Nc3 {[%emt 0:00:02]} g6 {[%emt 0:00:49]} 6. Be3 {[%emt 0:00:05]} Bg7 {[%emt 0:00:16]} 7. f3 {[%emt 0:00:01]} O-O {[%emt 0:00:39]} 8. Qd2 {[%emt 0:00:02]} Nc6 {[%emt 0:00:11]} 9. O-O-O {[%emt 0:00:03]} d5 {[%emt 0:01:57]} 10. exd5 {[%emt 0:00:03]} Nxd5 {[%emt 0:00:34]} 11. Nxc6 {[%emt 0:00:02]} bxc6 {[%emt 0:00:14]} 12. Bd4 {[%emt 0:00:02]} e5 {[%emt 0:02:12]} 13. Bc5 {[%emt 0:00:02]} Re8 {[%emt 0:04:16]} 14. Ne4 {[%emt 0:00:23]} Be6 {[%emt 0:07:59]} 15. h4 {[%emt 0:00:57]} h5 {[%emt 0:06:48]} 16. c4 {[%emt 0:08:24]} Qc7 {[%emt 0:07:29]} 17. Kb1 {[%emt 0:05:51]} Red8 {[%emt 0:05:47]} 18. Qc2 {[%emt 0:16:35]} Rac8 {[%emt 0:18:45]} 19. g3 {[%emt 0:03:06]} Qa5 {[%emt 0:07:03]} 20. cxd5 {[%emt 0:34:02]} Bxd5 {[%emt 0:08:33]} 21. Bc4 {[%emt 0:01:37]} f5 {[%emt 0:04:47]} 22. b4 {[%emt 0:01:46]} Rb8 {[%emt 0:01:09]} 23. Qb3 {[%emt 0:10:11]} Qc7 {[%emt 0:07:22]} 24. Bxd5+ {[%emt 0:00:50]} cxd5 {[%emt 0:00:15]} 25. Rxd5 {[%emt 0:01:35]} Rxd5 {[%emt 0:01:08]} 26. Qxd5+ {[%emt 0:00:03]} Kh8 {[%emt 0:00:06]} 27. Bd6 {[%emt 0:07:12]} Qd7 {[%emt 0:01:20]} 28. Rd1 {[%emt 0:00:45]} Rb6 {[%emt 0:00:43]} 29. Bc5 {[%emt 0:01:04]} 1-0